Cogmind - Beta 13 @@@ ROGUE MODE // 2024.05.07 @ 21:09:52 Player: P9H Result: Destroyed by G-47 Trooper with Particle Gun Performance ------------- Evolutions (2) 1000 Regions Visited (7) 1400 Robots Destroyed (27) 135 Value Destroyed (770) 770 Prototype IDs (0) 0 Alien Tech Used (0) 0 Bonus (300) 300 TOTAL SCORE: 3605 Bonus ------- Aligned with FarCom 300 Cogmind --------- Core Integrity 0/550 Matter 221/400 Energy 160/160 System Corruption 0% Temperature Cool (9) Movement Core (150) Ox2 Location -8/Materials Parts ------- > --- POWER (2) -------- Light Nuclear Core > --- PROPULSION (2) --- (None) > --- UTILITY (4) ------ Medium Matter Pod > --- WEAPON (3) ------- (None) > --- INVENTORY (5) ---- Deuterium Engine Peak State ------------ > --- POWER ------------ Ion Engine Light Nuclear Core > --- PROPULSION ------- Light Treads Light Treads > --- UTILITY ---------- Humpback Medium Matter Pod Improved Power Shielding > --- WEAPON ----------- Particle Gun Beam Cannon Heavy Flail > --- INVENTORY -------- Ion Engine Light Ion Engine Deuterium Engine Deuterium Engine Light Nuclear Core Light Nuclear Core Aluminum Leg Aluminum Leg Aluminum Leg Particle Gun Improved Light Cannon Welding Torch [Rating: 20] Favorites ----------- Power Light Nuclear Core Engine Light Ion Engine Power Core Light Nuclear Core Propulsion Light Treads Treads Light Treads Leg Aluminum Leg Wheel Compact Wheel Utility Humpback Device Hardlight Generator Storage Humpback Processor Melee Analysis Suite Hackware Hacking Suite Protection Improved Power Shielding Weapon Light Assault Rifle Energy Gun Particle Gun Energy Cannon Beam Cannon Ballistic Gun Light Assault Rifle Ballistic Cannon Improved Light Cannon Launcher Grenade Launcher Impact Weapon Heavy Flail Build | -11 -10 -10 -9 -9 -9 -8 -8 ------- Run | Yrd Mat Min Mat Min Exi Min Mat Slots Evolved 4 | . . . 2 . . . 2 Power 1 | . . . 1 . . . . Propulsion . | . . . . . . . . Utility 2 | . . . . . . . 2 Weapon 1 | . . . 1 . . . . Parts Attached 41 | 7 2 4 5 2 1 1 19 Power 8 | 1 . . 1 2 . . 4 Engine 5 | 1 . . 1 1 . . 2 Core 3 | . . . . 1 . . 2 Reactor . | . . . . . . . . Propulsion 10 | 3 . 2 2 . . . 3 Treads 5 | . . . 2 . . . 3 Leg 3 | 1 . 2 . . . . . Wheel 2 | 2 . . . . . . . Hover . | . . . . . . . . Flight . | . . . . . . . . Utility 8 | 1 2 . . . 1 . 4 Device 1 | . . . . . . . 1 Storage 4 | 1 1 . . . 1 . 1 Processor 1 | . . . . . . . 1 Hackware 1 | . 1 . . . . . . Protection 1 | . . . . . . . 1 Artifact . | . . . . . . . . Weapon 15 | 2 . 2 2 . . 1 8 Energy Gun 4 | 2 . . . . . . 2 Energy Cannon 2 | . . . . . . . 2 Ballistic Gun 4 | . . 2 1 . . . 1 Ballistic Cannon 2 | . . . . . . . 2 Launcher 2 | . . . 1 . . 1 . Special Weapon . | . . . . . . . . Impact Weapon 1 | . . . . . . . 1 Slashing Weapon . | . . . . . . . . Piercing Weapon . | . . . . . . . . Special Melee Weapon . | . . . . . . . . Unidentified Prototypes . | . . . . . . . . Parts Lost 25 | . . . 1 3 . 1 20 Power 7 | . . . . 2 . . 5 Propulsion 5 | . . . 1 . . . 4 Utility 4 | . . . . 1 . . 3 Weapon 9 | . . . . . . 1 8 Highest Loss Streak 12 | . . . 1 3 . 1 12 To Critical Strikes . | . . . . . . . . Average Slot Usage (%) 87 | . 96 100 98 92 88 87 81 Engine 11 | . 14 14 22 16 11 11 8 Core 8 | . . . . 5 11 11 5 Treads 18 | . . . 12 22 22 22 16 Leg 1 | . . 25 8 . . . . Storage 13 | . 14 14 11 11 11 11 17 Hackware 1 | . 10 14 11 5 . . . Protection 1 | . . . . . . . 5 Energy Gun 2 | . 28 4 . . . . 6 Energy Cannon 1 | . . . . . . . 6 Ballistic Gun 17 | . . 23 27 22 22 22 7 Launcher 7 | . . . 5 11 11 10 . Naked Turns . | . . . . . . . . Heaviest Build 223 | 14 29 29 36 36 214 214 223 Greatest Support 40 | 32 32 32 40 40 40 40 40 Greatest Overweight (x) 72 | 3 . 1 3 . 5 5 72 Average Overweight (x) 3 | . . . . . 4 5 5 Largest Inventory Capacity 35 | 8 15 15 15 15 35 35 35 Average Capacity 31 | 7 13 15 15 15 33 35 34 Most Carried 15 | 8 11 15 15 13 14 13 13 Average Carried 11 | 5 8 13 13 12 11 11 10 Final Capacity 35 | 8 15 15 15 15 35 35 5 Final Carried 15 | 6 11 15 13 12 12 13 1 Class Distribution -------------------- 42% | Hauler-Gunner 31% | Hauler-Skirmisher 10% | Mutant 8% | Hauler-Mutant 7% | Gunner Dominant Class ---------------- Mutant | -10/Materials Mutant | -10/Mines Gunner | -9/Materials Gunner | -9/Mines Hauler-Gunner | -9/Exiles Hauler-Skirmisher | -8/Mines Hauler-Skirmisher | -8/Materials Resources | -11 -10 -10 -9 -9 -9 -8 -8 ----------- Run | Yrd Mat Min Mat Min Exi Min Mat Matter Collected 1070 | 196 63 196 85 123 14 47 346 Remotely . | . . . . . . . . Salvage Created 892 | 18 63 186 151 22 . 18 434 Parts 60 | 3 5 17 11 1 . 7 16 Haulers Intercepted . | . . . . . . . . Recyclers Shooed 1 | . . . . 1 . . . Parts Field Recycled . | . . . . . . . . Retrieved Matter . | . . . . . . . . Parts Self-Destructed . | . . . . . . . . Prevented . | . . . . . . . . Kills | -11 -10 -10 -9 -9 -9 -8 -8 ------- Run | Yrd Mat Min Mat Min Exi Min Mat Combat Hostiles Destroyed 23 | . 1 8 3 . . 3 8 Melee 1 | . . . . . . . 1 Guns 15 | . 1 8 3 . . . 3 Cannons 3 | . . . . . . . 3 AOE 4 | . . . . . . 3 1 Classes Destroyed 8 | 1 2 1 1 1 . . 2 Worker 1 | . . . . 1 . . . Tunneler 1 | 1 . . . . . . . Operator 1 | . 1 . . . . . . Watcher 1 | . . . . . . . 1 Swarmer 9 | . . 6 . . . 3 . Grunt 9 | . 1 2 1 . . . 5 Duelist 1 | . . . . . . . 1 Sentry 4 | . . . 2 . . . 2 Best Kill Streak 3 | 1 1 3 2 1 . 3 2 Combat Bots Only 3 | . 1 3 2 . . 3 2 Max Kills in Single Turn 2 | 1 1 1 1 1 . 2 1 Gunslinging . | . . . . . . . . Exploded 2 | . . . . . . 2 1 Melee 1 | . . . . . . . 1 Uniques/NPCs Destroyed . | . . . . . . . . Combat | -11 -10 -10 -9 -9 -9 -8 -8 -------- Run | Yrd Mat Min Mat Min Exi Min Mat Hostile Shots Fired 228 | . 10 27 26 10 . 7 148 Missed 41 | . 3 5 5 1 . 2 25 Damage Taken 3256 | . 88 217 309 324 . 84 2234 Core 761 | . 39 44 31 82 . . 565 Absorbed by Shields 24 | . . . . . . . 24 Redirected to Shielding 108 | . . . . . . . 108 Core Remaining (%) 79 | 100 . 66 . . . 71 . Volleys Fired 114 | 2 13 15 12 6 . 2 64 Largest 3 | 2 2 2 3 3 . 3 3 Hottest 190 | 100 100 100 70 70 . 70 190 Shots Fired 236 | 4 26 30 36 18 . 6 116 Gun 182 | 4 26 30 34 12 . 4 72 Cannon 42 | . . . . . . . 42 Launcher 12 | . . . 2 6 . 2 2 Special . | . . . . . . . . Kinetic 119 | . . 16 34 12 . 4 53 Thermal 105 | 4 26 14 . . . . 61 Explosive 12 | . . . 2 6 . 2 2 Electromagnetic . | . . . . . . . . Robot Hit Streak 10 | 1 6 5 10 6 . 4 7 Robot Miss Streak 5 | 1 3 3 1 2 . 1 5 Penetration Max . | . . . . . . . . Secondary Targets 2 | . . 2 . . . . . Max Gunslinging Chain 1 | . . 1 . . . . . Shots Hit Robots 146 | 2 15 17 29 12 . 4 67 Core Hits 73 | 1 5 12 8 10 . 3 34 Critical Kills . | . . . . . . . . Critical Parts Destroyed . | . . . . . . . . Critical Strikes 3 | . 1 1 . . . . 1 Burn 3 | . 1 1 . . . . 1 Melee Attacks 1 | . . . . . . . 1 Impact 1 | . . . . . . . 1 Slashing . | . . . . . . . . Piercing . | . . . . . . . . Sneak Attacks . | . . . . . . . . Combat Hostiles . | . . . . . . . . Follow-up Attacks . | . . . . . . . . Damage Inflicted 2204 | 26 205 211 347 203 . 127 1085 Guns 1276 | 26 197 211 272 48 . 23 499 Cannons 448 | . . . . . . . 448 Explosions 407 | . . . 75 155 . 93 84 Melee 33 | . . . . . . . 33 Ramming 40 | . 8 . . . . 11 21 Kinetic 757 | . . 89 272 48 . 23 325 Thermal 967 | 26 197 122 . . . . 622 Explosive 407 | . . . 75 155 . 93 84 Electromagnetic . | . . . . . . . . Impact 33 | . . . . . . . 33 Slashing . | . . . . . . . . Piercing . | . . . . . . . . Highest Corruption . | . . . . . . . . Average Corruption . | . . . . . . . . Corruption Purged . | . . . . . . . . Corruption Blocked . | . . . . . . . . Overload Shots . | . . . . . . . . Overflow Damage 26 | . . . . . . . 26 Projectiles 15 | . . . . . . . 15 Explosions 11 | . . . . . . . 11 Melee . | . . . . . . . . Knockbacks 2 | . . . . . . . 2 Impact . | . . . . . . . . Kinetic 1 | . . . . . . . 1 Secondary 1 | . . . . . . . 1 Self-Inflicted Damage 114 | . 4 . . 27 . 46 37 Shots 3 | . . . . 1 . 1 1 Rammed 21 | . 3 . . . . 1 17 Targets Rammed 21 | . 3 . . . . 1 17 Kicked . | . . . . . . . . Crushed . | . . . . . . . . Highest Temperature 860 | 39 354 246 138 21 . 42 860 Average Temperature 177 | 24 132 92 57 10 . 23 243 Received Heat Transfer 1300 | . 42 51 105 18 . . 1084 Effects 34 | . . . . . . . 34 Shutdowns 6 | . . . . . . . 6 Energy Bleed 3 | . . . . . . . 3 Interference 7 | . . . . . . . 7 Matter Decay 7 | . . . . . . . 7 Short Circuit 2 | . . . . . . . 2 Damage (minor) 1 | . . . . . . . 1 Damage (major) 6 | . . . . . . . 6 Damage (core) 2 | . . . . . . . 2 Siege Activations . | . . . . . . . . Robots Corrupted . | . . . . . . . . Combat Hostiles . | . . . . . . . . Parts Fried . | . . . . . . . . Impact Corruptions . | . . . . . . . . Robots Melted . | . . . . . . . . Combat Hostiles . | . . . . . . . . Parts Melted 4 | . 1 1 . . . . 2 Heat Transferred 2627 | 74 666 444 . . . . 1443 Parts Sabotaged . | . . . . . . . . Parts Stolen . | . . . . . . . . Parts Stripped . | . . . . . . . . Power Chain Reactions . | . . . . . . . . Alert | -11 -10 -10 -9 -9 -9 -8 -8 ------- Run | Yrd Mat Min Mat Min Exi Min Mat Peak Influence 227 | 5 58 227 113 53 . 93 135 Initial 43 | . 3 22 10 43 . . . Average 41 | 1 29 174 57 41 . 21 25 Maximum Alert Level 1 | . . 1 . . . . . Low Security (%) 95 | 100 100 52 100 100 . 100 100 Level 1 4 | . . 47 . . . . . Level 2 . | . . . . . . . . Level 3 . | . . . . . . . . Level 4 . | . . . . . . . . Level 5 . | . . . . . . . . High Security . | . . . . . . . . Max Security . | . . . . . . . . Squads Dispatched 3 | . 1 . . 1 . . 1 Investigation . | . . . . . . . . Extermination . | . . . . . . . . Reinforcement 3 | . 1 . . 1 . . 1 Assault . | . . . . . . . . Garrison . | . . . . . . . . Intercept . | . . . . . . . . Searches Triggered . | . . . . . . . . Construction Impeded 1 | . . . . 1 . . . Haulers Reinforced . | . . . . . . . . Active Scanning Responses . | . . . . . . . . Cargo Convoy Interrupts . | . . . . . . . . Stealth | -11 -10 -10 -9 -9 -9 -8 -8 --------- Run | Yrd Mat Min Mat Min Exi Min Mat Distress Signals 2 | . . . . 1 . . 1 Communications Jammed . | . . . . . . . . Distress Signals . | . . . . . . . . Times Spotted 43 | . 3 8 3 8 . 3 18 Peak Tracking Total 11 | . 1 3 3 11 . 3 3 Tactical Retreats 1 | . . . . . . . 1 Traps | -11 -10 -10 -9 -9 -9 -8 -8 ------- Run | Yrd Mat Min Mat Min Exi Min Mat Traps Triggered . | . . . . . . . . Indirectly . | . . . . . . . . Trap Hack Attempts . | . . . . . . . . Triggered . | . . . . . . . . Disarmed . | . . . . . . . . Reprogrammed . | . . . . . . . . Reused . | . . . . . . . . Traps Extracted . | . . . . . . . . Installed . | . . . . . . . . Triggered . | . . . . . . . . Machines | -11 -10 -10 -9 -9 -9 -8 -8 ---------- Run | Yrd Mat Min Mat Min Exi Min Mat Machines Disabled 2 | . . . . . . . 2 Max in Single Turn 1 | . . . . . . . 1 Machines Repaired . | . . . . . . . . Machines Dismantled . | . . . . . . . . Machines Sabotaged . | . . . . . . . . Overloaded Fab Kills . | . . . . . . . . Hacking | -11 -10 -10 -9 -9 -9 -8 -8 --------- Run | Yrd Mat Min Mat Min Exi Min Mat Machines Accessed 2 | . . . . . 1 1 . Terminals 1 | . . . . . . 1 . Fabricators . | . . . . . . . . Repair Stations . | . . . . . . . . Recycling Units . | . . . . . . . . Scanalyzers . | . . . . . . . . Garrison Access . | . . . . . . . . Total Hacks 4 | . . . . . 2 2 . Successful 3 | . . . . . 2 1 . Failed 1 | . . . . . . 1 . Catastrophic . | . . . . . . . . Database Lockouts . | . . . . . . . . Manual . | . . . . . . . . Terminals 2 | . . . . . . 2 . Fabricators . | . . . . . . . . Repair Stations . | . . . . . . . . Recycling Units . | . . . . . . . . Scanalyzers . | . . . . . . . . Garrison Access . | . . . . . . . . Terminal Hacks 3 | . . . . . 2 1 . Record 3 | . . . . . 2 1 . Fabricator Hacks . | . . . . . . . . Repair Station Hacks . | . . . . . . . . Recycling Unit Hacks . | . . . . . . . . Scanalyzer . | . . . . . . . . Garrison Access Hacks . | . . . . . . . . Unauthorized Hacks . | . . . . . . . . Terminals . | . . . . . . . . Fabricators . | . . . . . . . . Repair Stations . | . . . . . . . . Recycling Units . | . . . . . . . . Scanalyzers . | . . . . . . . . Garrison Access . | . . . . . . . . Data Cores Recovered 1 | . 1 . . . . . . Used . | . . . . . . . . Hacking Detections 1 | . . . . . . 1 . Full Trace Events . | . . . . . . . . Feedback Events . | . . . . . . . . Feedback Blocked . | . . . . . . . . Robot Schematics Acquired . | . . . . . . . . Robots Built . | . . . . . . . . Authchips . | . . . . . . . . Time . | . . . . . . . . Total Robot Build Rating . | . . . . . . . . Part Schematics Acquired . | . . . . . . . . Parts Built . | . . . . . . . . Authchips . | . . . . . . . . Time . | . . . . . . . . Total Part Build Rating . | . . . . . . . . Parts Repaired . | . . . . . . . . Time . | . . . . . . . . Parts Recycled . | . . . . . . . . Recycled Matter . | . . . . . . . . Retrieved Matter . | . . . . . . . . Retrieved Components . | . . . . . . . . Parts Scanalyzed . | . . . . . . . . Part Schematics Acquired . | . . . . . . . . Parts Damaged . | . . . . . . . . Bothacking | -11 -10 -10 -9 -9 -9 -8 -8 ------------ Run | Yrd Mat Min Mat Min Exi Min Mat Used RIF Installer . | . . . . . . . . Robots Hacked . | . . . . . . . . Non-combat . | . . . . . . . . Combat . | . . . . . . . . Robot Hacks Applied . | . . . . . . . . Relay Couplers Released . | . . . . . . . . Fabnet Peak Effective % . | . . . . . . . . Robots Rewired . | . . . . . . . . Allies Hacked . | . . . . . . . . Hacks Repelled . | . . . . . . . . Allies | -11 -10 -10 -9 -9 -9 -8 -8 -------- Run | Yrd Mat Min Mat Min Exi Min Mat Total Allies . | . . . . . . . . Largest Group . | . . . . . . . . Highest-Rated Group . | . . . . . . . . Highest-Rated Ally . | . . . . . . . . Total Orders . | . . . . . . . . Ally Attacks . | . . . . . . . . Total Damage . | . . . . . . . . Kills . | . . . . . . . . Allies Corrupted . | . . . . . . . . Allies Melted . | . . . . . . . . Intel | -11 -10 -10 -9 -9 -9 -8 -8 ------- Run | Yrd Mat Min Mat Min Exi Min Mat Robot Analysis Total . | . . . . . . . . Derelict Logs Recovered . | . . . . . . . . Drone Launches . | . . . . . . . . Drone Recoveries . | . . . . . . . . Exploration | -11 -10 -10 -9 -9 -9 -8 -8 ------------- Run | Yrd Mat Min Mat Min Exi Min Mat Turns Passed 7607 | 94 207 411 225 102 3498 1107 1963 Spaces Moved 1781 | 59 158 191 102 51 725 196 299 Core 30 | 21 . . . . . . 9 Treads 1337 | . . . 75 51 725 196 290 Legs 211 | 3 . 181 27 . . . . Wheels 203 | 35 158 10 . . . . . Hover . | . . . . . . . . Flight . | . . . . . . . . Fastest Speed 50 | 50 100 100 160 160 160 560 150 Average Speed 401 | 117 100 185 173 160 481 560 576 Slowest Speed 3650 | 200 100 190 330 160 560 560 3650 Overloaded Moves . | . . . . . . . . Propulsion Burnouts . | . . . . . . . . Robots Hopped . | . . . . . . . . Cave-ins Triggered . | . . . . . . . . Exploration Rate (%) 33 | 4 32 38 11 17 92 57 20 Regions Visited 7 Branch Regions 4 Pre-discovered Areas 1 | . . . . 1 . . . Known Exits Taken . | . . . . . . . . Unknown Exits Taken 7 | 1 1 1 1 1 1 1 . Scrap Searched 1 | . . 1 . . . . . Spaces Dug . | . . . . . . . . Terrain Destroyed 99 | . . . 18 29 . 31 21 Melee . | . . . . . . . . Projectile . | . . . . . . . . AOE 99 | . . . 18 29 . 31 21 Terrain Rammed . | . . . . . . . . Walls Destroyed . | . . . . . . . . Machines Disabled . | . . . . . . . . Actions | -11 -10 -10 -9 -9 -9 -8 -8 --------- Run | Yrd Mat Min Mat Min Exi Min Mat Total 2021 | 79 181 221 128 59 736 201 416 Wait 10 | . . . 7 . . . 3 Move 1774 | 58 157 190 101 50 724 195 299 Hop . | . . . . . . . . Pick Up 51 | 11 5 8 2 1 10 2 12 Fast Attach 2 | 1 1 . . . . . . Attach 33 | 6 . 3 4 2 1 1 16 Detach 2 | 1 . . . . . . 1 Swap 6 | . 1 1 1 . . . 3 Drop 7 | . 1 4 1 . 1 . . Fire 114 | 2 13 15 12 6 . 2 64 Melee 1 | . . . . . . . 1 Ram 17 | . 3 . . . . . 14 Kick . | . . . . . . . . Crush 4 | . . . . . . 1 3 Escape Stasis . | . . . . . . . . Rewire . | . . . . . . . . Trap . | . . . . . . . . Miscellaneous . | . . . . . . . . Route ------- -11/Scrapyard -10/Materials -10/Mines -9/Materials -9/Mines (discovered 2 exits: *Mat / *Exi) -9/Exiles (discovered 2 exits: *Min x2) -8/Mines -8/Materials History --------- Turn | Location | Event 9 | -11/Scrapyard | Discovered new exit (range 15) 95 | -11/Scrapyard | Entered Materials 222 | -10/Materials | Discovered new exit (range 13) 302 | -10/Materials | Entered Mines 318 | -10/Mines | Build established: Mutant 525 | -10/Mines | Discovered new exit (range 5) 713 | -10/Mines | Entered Materials 713 | -9/Materials | Evolved 2 slots: Power x1, Weapon x1 887 | -9/Materials | Discovered new exit (range 3) 938 | -9/Materials | Entered Mines 939 | -9/Mines | Learned location of Storage (-8) 968 | -9/Mines | Assembled infested the area 974 | -9/Mines | Discovered new exit (range 10) 1000 | -9/Mines | Met 8R-AWN 1014 | -9/Mines | Build established: Gunner 1024 | -9/Mines | Lost 3 parts (2p1u) 1033 | -9/Mines | Discovered new exit (range 5) 1040 | -9/Mines | Entered Exiles 1072 | -9/Exiles | Discovered new exit (range 14) 1098 | -9/Exiles | Welcomed by 8R-AWN 1122 | -9/Exiles | Met EX-HEX 1186 | -9/Exiles | Met EX-DEC 1575 | -9/Exiles | Build established: Hauler-Gunner 1979 | -9/Exiles | Met EX-BIN 2074 | -9/Exiles | Aligned with FarCom system 2080 | -9/Exiles | Given EX-Vault access code 3290 | -9/Exiles | Discovered new exit (range 10) 3677 | -9/Exiles | Visited The Gauntlet 4538 | -9/Exiles | Entered Mines 4979 | -8/Mines | Build established: Hauler-Skirmisher 5612 | -8/Mines | Discovered new exit (range 6) 5645 | -8/Mines | Entered Materials 5645 | -8/Materials | Evolved 2 slots: Utility x2 6619 | -8/Materials | Lost 6 parts (2p2n2w) 7512 | -8/Materials | Build established: Hauler-Mutant 7552 | -8/Materials | Core integrity fell below 50% 7569 | -8/Materials | Core integrity fell below 20% 7608 | -8/Materials | Destroyed by G-47 Trooper with Particle Gun Last Messages --------------- turn, consider turning it off when not vital. 07575_ R-06 Scavenger collects Ion Engine. 07576_ Slammed into G-47 Trooper. 07576_ R-06 Scavenger collects Deuterium Engine. 07579_ Overheating: Energy bleed (-14). 07579_ R-06 Scavenger collects Lgt. Nuclear Core. 07579_ G-47 Trooper destroyed. 07583_ Hardlight Generator destroyed. 07585_ Lgt. Ion Engine destroyed. 07587_ Destroyed Hvy. Laser. 07587_ G-50 Soldier knocked back. 07590_ Overheating: System interference. 07590_ Imp. Light Cannon temporarily disabled. 07591_ Acquired 60 matter. 07595_ Slammed into G-47 Trooper. 07598_ Acquired 4 matter. 07599_ Slammed into G-47 Trooper. 07604_ Imp. Light Cannon destroyed. 07605_ Slammed into G-47 Trooper. Map ----- +----------------------------------------------------+ | ?????????????????????????????????????????????????? | | ?????????????????????????????????????????????????? | | ?????????????????????????????????????????????????? | | ?????????????????????????????????????????????????? | | ?????????????????????????????????????????????????? | | ?????????????????????????????????????????????????? | | ?????????????????????? ????????????????????????? | | ?????????????????????# ""??????????????????????? | | ?????????????????????# ??????????????????????? | | ?????????????????????# ??????????????????????? | | ?????????????????????# ??????????????????????? | | ?????????????????????# ???????????????????????? | | ?????????????????????# ?????gg????????????????? | | ?????????????????????/ ???????????????????????? | | ?????????????????????# ???????????????????????? | | ?????????????????????# w#???????????????????????? | | ?????????????????????# #???????????????????????? | | ?????????????????????# #???????????????????????? | | ??????????????######## ########????????????????? | | ??????????????# #????????????????? | | ??????????????# #????????????????? | | ??????????????# = #########????????? | | ??????????????# #####+##### # | #????????? | | ???????????????????# ! ## # !#????????? | | ???????????????????# = % ## # #????????? | | ???????????????????# @g## # """"" #????????? | | ?????????????????w?# ## # """"" #????????? | | ???????????????????# ## + """"" #????????? | | ???????????????????# """ ## # #????????? | | ???????????????????# """"" #### # """"" #????????? | | ???????????????????# """"" #??# # """"" #????????? | | ???????????????????# """"" #??# # """"" #????????? | | ??????########?????# """ #??# # #????????? | | ??????# ! #?????# ? #??# #########????????? | | ??????# #?????####?####??# #????????????????? | | ??????# "" #????????????????# #???????###??????? | | #####?# "Y ! #????????????????# #????###########?? | | #?# "" #?????????######## ###### ####### | | #?# ! #?????????#% | | #####+############## % | | | | ### #########+############ ###### | | ### "" #???# #???######+######## | | # """ #???# ###### !#??#! | | # "T" """ #???# """ """ # # #??#! | | #! #???# """ """ ###### #??## | | "%+ #???# """ """ #???## " #???? | | "%# ###+#####+#???# #???##% "" #???? | | " ##### #???#! #???##! """" #???? | | ###???# #???# #????# """"" #???? | +----------------------------------------------------+ Best States ------------- Heat Dissipation 31 Energy Generation 19 Energy Capacity 400 Matter Stores 400 Matter Capacity 400 Sight Range 16 Terrain Scan Density 10 Power Shielding 66 Evasion (%) 45 Melee Accuracy 5 Recoil Reduction 2 Offensive Hacking 10 Item Schematics ----------------- None Robot Schematics ------------------ None Fabricated ------------ Nothing Alien Tech Used ----------------- None Achievements -------------- I Survived The Infestation Slippery One Tank Tourist Challenges ------------ None Game ------ Seed HeartMomentumSaw Manual? 0 Play Time 00:33:19 Cumulative 2.4 hours Start 2024.05.07 @ 20:09:31 End 2024.05.07 @ 21:09:52 Sessions 1 Manual Loads 0 Difficulty Rogue Special Mode None Game No. 6 Rogue 6 Adventurer 0 Explorer 0 Win Type - Total 0 Types 0/0/0/0/0/0/0/0/0 Lore% 1 Gallery% 6 Achievement% 6 Wizard Run 0 Options --------- Layout 1 ASCII 0 Keyboard 0 Movement Mouse Keybinds 0 Fullscreen 2 Font 32/SmallcapsGlow Map View 50x35 Zoom Use 0% Tactical HUD 1 Map Filters NONE Filters NONE Steam 1 RUN: eaabb868-3a6c-48af-a515-d242cea62a93